Cogmind - Beta 16 @@@ ROGUE MODE // 2026.02.02 @ 13:39:09 Player: FailPail Result: Destroyed self via exploding Fusion Modulator Performance ------------- Evolutions (0) 0 Regions Visited (1) 200 Robots Destroyed (10) 50 Value Destroyed (375) 375 Prototype IDs (0) 0 Alien Tech Used (0) 0 Bonus (0) 0 TOTAL SCORE: 625 Bonus ------- None Cogmind --------- Core Integrity 0/250 Matter 267/300 Energy 24/100 System Corruption 0% Temperature Cool (90) Movement Core (100) Ox1 Location -10/Materials Parts ------- > --- POWER (1) -------- (None) > --- PROPULSION (2) --- (None) > --- UTILITY (2) ------ Sensor Array Utility Shielding > --- WEAPON (2) ------- Beam Cannon > --- INVENTORY (5) ---- Large Battery (200) Large Battery (200) Large Battery (200) Large Battery (200) Peak State ------------ > --- POWER ------------ Light Ion Engine > --- PROPULSION ------- Aluminum Leg Aluminum Leg > --- UTILITY ---------- Visual Processing Unit ECM Suite > --- WEAPON ----------- Medium Laser Grenade Launcher > --- INVENTORY -------- Large Battery Large Battery Large Battery Large Battery [Rating: 8] Favorites ----------- Power Light Ion Engine Engine Light Ion Engine Propulsion Aluminum Leg Leg Aluminum Leg Utility ECM Suite Device ECM Suite Processor Visual Processing Unit Protection Utility Shielding Weapon Medium Laser Energy Gun Medium Laser Energy Cannon Beam Cannon Ballistic Gun Light Assault Rifle Launcher Grenade Launcher Build | -11 -10 ------- Run | Yrd Mat Slots Evolved . | . . Power . | . . Propulsion . | . . Utility . | . . Weapon . | . . Parts Attached 13 | 5 8 Power 1 | 1 . Engine 1 | 1 . Core . | . . Reactor . | . . Propulsion 2 | 2 . Treads . | . . Leg 2 | 2 . Wheel . | . . Hover . | . . Flight . | . . Utility 5 | . 5 Device 3 | . 3 Storage . | . . Processor 1 | . 1 Hackware . | . . Protection 1 | . 1 Artifact . | . . Weapon 5 | 2 3 Energy Gun 2 | 1 1 Energy Cannon 1 | . 1 Ballistic Gun 1 | 1 . Ballistic Cannon . | . . Launcher 1 | . 1 Special Weapon . | . . Impact Weapon . | . . Slashing Weapon . | . . Piercing Weapon . | . . Special Melee Weapon . | . . Unidentified Prototypes . | . . Parts Lost 6 | . 6 Power 1 | . 1 Propulsion 2 | . 2 Utility . | . . Weapon 3 | . 3 Highest Loss Streak 4 | . 4 To Critical Strikes . | . . Average Backups 2 | . 3 Power . | . . Propulsion . | . . Utility 2 | . 2 Weapon . | . . Tool/Special . | . . Unused Backups 7 | . 7 Power . | . . Propulsion 1 | . 1 Utility 5 | . 5 Weapon 1 | . 1 Tool/Special . | . . Average Slot Usage (%) 89 | . 89 Engine 13 | . 13 Leg 25 | . 25 Device 16 | . 16 Processor 4 | . 4 Protection 2 | . 2 Energy Gun 12 | . 12 Energy Cannon 1 | . 1 Ballistic Gun 5 | . 5 Launcher 6 | . 6 Peak Build Rating 8 | 5 8 Average Rating 6 | 3 6 On Entrance 2 | . 5 Avg Prop Armor Cover (%) . | . . Naked Turns . | . . Heaviest Build 12 | 6 12 Greatest Support 20 | 20 20 Greatest Overweight (x) 2 | . 2 Average Overweight (x) . | . . Largest Inventory Capacity 5 | 5 5 Average Capacity 5 | 5 5 Most Carried 5 | 2 5 Average Carried 2 | . 3 Final Capacity 5 | 5 5 Final Carried 4 | . 4 Class Distribution -------------------- 100% | Mutant Dominant Class ---------------- Mutant | -10/Materials Resources | -11 -10 ----------- Run | Yrd Mat Matter Collected 344 | 256 88 Remotely . | . . Salvage Created 344 | 41 303 Parts 14 | 1 13 Haulers Intercepted . | . . Recyclers Shooed . | . . Parts Field Recycled . | . . Retrieved Matter . | . . Parts Self-Destructed . | . . Prevented . | . . Parts Restored . | . . Kills | -11 -10 ------- Run | Yrd Mat Combat Hostiles Destroyed 8 | 1 7 Guns 2 | 1 1 Cannons 2 | . 2 AOE 4 | . 4 Classes Destroyed 3 | 1 2 Worker 1 | . 1 Watcher 1 | . 1 Grunt 8 | 1 7 Best Kill Streak 4 | 1 4 Combat Bots Only 2 | 1 2 Max Kills in Single Turn 1 | 1 1 Gunslinging . | . . Exploded 1 | . 1 Melee . | . . Uniques/NPCs Destroyed . | . . Combat | -11 -10 -------- Run | Yrd Mat Hostile Shots Fired 54 | 7 47 Missed 10 | 1 9 Hits 44 | 6 38 Projectile 44 | 6 38 Critical Strikes 1 | . 1 Damage Taken 789 | 68 721 Core 283 | 11 272 Absorbed by Shields . | . . Redirected to Shielding 5 | . 5 Regen/Repaired (Parts) 22 | . 22 Core Remaining (%) 95 | 95 . Volleys Fired 41 | 6 35 Largest 2 | 2 2 Hottest 100 | 70 100 Shots Fired 63 | 12 51 Gun 42 | 12 30 Cannon 15 | . 15 Launcher 6 | . 6 Special . | . . Kinetic 15 | 6 9 Thermal 39 | 6 33 Explosive 6 | . 6 Electromagnetic 3 | . 3 Robot Hit Streak 5 | 5 4 Robot Miss Streak 4 | 2 4 Penetration Max . | . . Secondary Targets . | . . Shots Hit Robots 30 | 8 22 Core Hits 16 | 2 14 Critical Kills . | . . Critical Parts Destroyed . | . . Critical Strikes . | . . Melee Attacks . | . . Impact . | . . Slashing . | . . Piercing . | . . Sneak Attacks . | . . Combat Hostiles . | . . Follow-up Attacks . | . . Damage Inflicted 773 | 82 691 Guns 197 | 82 115 Cannons 174 | . 174 Explosions 401 | . 401 Melee . | . . Ramming 1 | . 1 Kinetic 58 | 22 36 Thermal 448 | 60 388 Explosive 238 | . 238 Electromagnetic 28 | . 28 Impact . | . . Slashing . | . . Piercing . | . . Highest Corruption . | . . Average Corruption . | . . Corruption Purged . | . . Corruption Blocked . | . . Overload Shots . | . . Overflow Damage 43 | . 43 Projectiles . | . . Explosions 43 | . 43 Melee . | . . Knockbacks . | . . Impact . | . . Kinetic . | . . Secondary . | . . Self-Inflicted Damage 241 | . 241 Shots 5 | . 5 Rammed . | . . Targets Rammed 1 | . 1 Kicked 1 | . 1 Crushed . | . . Highest Temperature 303 | 136 303 Average Temperature 79 | 73 80 Received Heat Transfer 321 | 36 285 Siege Activations . | . . Martial Activations . | . . Shielding Activations . | . . Robots Disrupted . | . . Combat Hostiles . | . . Robots Corrupted . | . . Combat Hostiles . | . . Parts Fried . | . . Impact Corruptions . | . . Robots Melted . | . . Combat Hostiles . | . . Parts Melted 1 | 1 . Heat Transferred 803 | 185 618 Parts Sabotaged . | . . Parts Stolen . | . . Parts Stripped . | . . Power Chain Reactions 1 | . 1 Alert | -11 -10 ------- Run | Yrd Mat Maximum Alert Level . | . . Low Security (%) 100 | 100 100 Level 1 . | . . Level 2 . | . . Level 3 . | . . Level 4 . | . . Level 5 . | . . High Security . | . . Max Security . | . . Peak Influence 95 | 20 95 Initial 13 | . 13 Average 23 | 2 25 Influence Increases 387 | 20 367 Destroy 0b10 Robot/C 160 | 20 140 Destroy 0b10 Robot/NC 10 | . 10 Destroy Leader 52 | . 52 Successful Hack 13 | . 13 Disable Machine 90 | . 90 Destroy Structure 62 | . 62 Influence Decreases 262 | . 262 Entered New Map 7 | . 7 Time Decay 195 | . 195 Lost Part 60 | . 60 Squads Dispatched 3 | . 3 Investigation 1 | . 1 Extermination . | . . Reinforcement 2 | . 2 Assault . | . . Garrison . | . . Intercept . | . . Searches Triggered . | . . Construction Impeded . | . . Haulers Reinforced . | . . Active Scanning Responses . | . . Cargo Convoy Interrupts . | . . Stealth | -11 -10 --------- Run | Yrd Mat Distress Signals . | . . Communications Jammed . | . . Distress Signals . | . . Times Spotted 18 | 1 17 Peak Tracking Total 4 | 1 4 Tactical Retreats 1 | . 1 ECM-based Alert Blocks 1 | . 1 Traps | -11 -10 ------- Run | Yrd Mat Traps Triggered 1 | . 1 Indirectly . | . . Trap Hack Attempts . | . . Triggered . | . . Disarmed . | . . Reprogrammed . | . . Reused . | . . Traps Extracted . | . . Installed . | . . Triggered . | . . Machines | -11 -10 ---------- Run | Yrd Mat Machines Disabled 6 | . 6 Max in Single Turn 3 | . 3 Machines Repaired . | . . Machines Dismantled . | . . Machines Sabotaged . | . . Overloaded Fab Kills . | . . Hacking | -11 -10 --------- Run | Yrd Mat Machines Accessed 5 | . 5 Terminals 2 | . 2 Fabricators . | . . Repair Stations 1 | . 1 Recycling Units 2 | . 2 Scanalyzers . | . . Garrison Access . | . . Total Hacks 23 | . 23 Successful 19 | . 19 Failed 4 | . 4 Catastrophic . | . . Database Lockouts . | . . Manual . | . . Terminals 8 | . 8 Fabricators . | . . Repair Stations 4 | . 4 Recycling Units 11 | . 11 Scanalyzers . | . . Garrison Access . | . . Terminal Hacks 7 | . 7 Record 5 | . 5 Alert Level 1 | . 1 Investigation Status 1 | . 1 Fabricator Hacks . | . . Repair Station Hacks 4 | . 4 Scan Component 2 | . 2 Repair 2 | . 2 Recycling Unit Hacks 8 | . 8 Recycle Component 1 | . 1 Process 2 | . 2 Report Inventory 3 | . 3 Retrieve Matter 1 | . 1 Retrieve Components 1 | . 1 Scanalyzer . | . . Garrison Access Hacks . | . . Unauthorized Hacks . | . . Terminals . | . . Fabricators . | . . Repair Stations . | . . Recycling Units . | . . Scanalyzers . | . . Garrison Access . | . . Data Cores Recovered . | . . Used . | . . Hacking Detections . | . . Full Trace Events . | . . Feedback Events . | . . Feedback Blocked . | . . Robot Schematics Acquired . | . . Robots Built . | . . Authchips . | . . Time . | . . Total Robot Build Rating . | . . Part Schematics Acquired . | . . Parts Built . | . . Authchips . | . . Time . | . . Total Part Build Rating . | . . Part Studies Acquired . | . . Parts Repaired 2 | . 2 Time 52 | . 52 Parts Recycled 1 | . 1 Recycled Matter 90 | . 90 Retrieved Matter 90 | . 90 Retrieved Components 1 | . 1 Parts Scanalyzed . | . . Part Schematics Acquired . | . . Parts Damaged . | . . Bothacking | -11 -10 ------------ Run | Yrd Mat Used RIF Installer . | . . Robots Hacked . | . . Non-combat . | . . Combat . | . . Robot Hacks Applied . | . . Relay Couplers Released . | . . Fabnet Peak Effective % . | . . Robots Rewired . | . . Allies Hacked . | . . Hacks Repelled . | . . Allies | -11 -10 -------- Run | Yrd Mat Total Allies . | . . Largest Group . | . . Highest-Rated Group . | . . Highest-Rated Ally . | . . Total Orders . | . . Ally Attacks . | . . Total Damage . | . . Kills . | . . Allies Corrupted . | . . Allies Melted . | . . Intel | -11 -10 ------- Run | Yrd Mat Active Infowar (turns) 619 | . 619 Optics 239 | . 239 Sensors 327 | . 327 ECM 292 | . 292 Robot Analysis Total . | . . Derelict Logs Recovered . | . . Drone Launches . | . . Drone Recoveries . | . . Exploration | -11 -10 ------------- Run | Yrd Mat Turns Passed 855 | 95 760 Spaces Moved 520 | 74 446 Core 60 | 29 31 Treads . | . . Legs 460 | 45 415 Wheels . | . . Hover . | . . Flight . | . . Fastest Speed 50 | 50 100 Average Speed 116 | 92 120 Slowest Speed 150 | 120 150 Overloaded Moves . | . . Propulsion Burnouts . | . . Robots Hopped . | . . Potential Cave-ins . | . . Cave-ins Triggered . | . . Exploration Rate (%) 32 | 8 56 Regions Visited 1 Branch Regions . Pre-discovered Areas . | . . Known Exits Taken . | . . Unknown Exits Taken 1 | 1 . Scrap Searched . | . . Spaces Dug 9 | . 9 Terrain Destroyed 71 | . 71 Melee . | . . Projectile . | . . AOE 71 | . 71 Terrain Rammed . | . . Walls Destroyed . | . . Machines Disabled . | . . Actions | -11 -10 --------- Run | Yrd Mat Total 711 | 89 622 Wait 109 | . 109 Move 519 | 73 446 Hop . | . . Pick Up 20 | 5 15 Fast Attach 2 | . 2 Attach 12 | 5 7 Detach . | . . Swap 1 | . 1 Drop 6 | . 6 Fire 41 | 6 35 Melee . | . . Ram . | . . Kick 1 | . 1 Crush . | . . Escape Stasis . | . . Rewire . | . . Trap . | . . Miscellaneous . | . . Route ------- -11/Scrapyard -10/Materials (discovered 2 exits: [*Mat] / [*Min]) History --------- Turn | Location | Event 2 | -11/Scrapyard | Met Revision 17 63 | -11/Scrapyard | Discovered new exit (range 8) 96 | -11/Scrapyard | Entered Materials 316 | -10/Materials | Build established: Mutant 437 | -10/Materials | Discovered new exit (range 9) 609 | -10/Materials | Discovered new exit (range 8) 699 | -10/Materials | Repaired Aluminum Leg 725 | -10/Materials | Repaired Grenade Launcher 816 | -10/Materials | Lost 4 parts (2n2w) 839 | -10/Materials | Core integrity fell below 50% 856 | -10/Materials | Destroyed self via exploding Fusion Modulator Last Messages --------------- U-05 Engineer builds a Wall. U-05 Engineer lays Concrete. K-01 Serf collects debris. U-05 Engineer builds a Wall. K-01 Serf collects debris. U-05 Engineer lays Concrete. R-06 Scavenger collects Sml. Laser. K-01 Serf collects debris. U-05 Engineer lays Concrete. Lgt. Ion Engine destroyed. U-05 Engineer builds a Wall. Acquired EM Pulse Gun. G-47 Trooper misfires. Chain reaction triggered in Lgt. Nuclear Core. G-47 Trooper destroyed. Fusion Modulator explodes. EM Pulse Gun destroyed. Destroyed EM Pulse Gun. Terminal disabled. [Achievement: First Step to Greatness] Map ----- +----------------------------------------------------+ | ?????????????????????????????????????????????????# | | ?????????????????????????????????????????????????# | | ?????????????????????????????????????????????????# | | ?????????????????????????????????????????????????# | | ?????????????????????????????????????????????????# | | ?????????????????????????????????????????????????# | | ????????????????????????????????? ?????????????# | | ????????????????????????????????? ?????????????# | | ????????????????????????????????# ?????????????# | | ???????????????????????????????? ?????????????# | | ????????????????????????????????# ?????????????# | | ????????????????????????????????# ????########## | | ???????????????????????????????##^ ##??# # | | ???????????????????????????????# ??# """ # | | ???????????????????????????????# ???# """ + | | ???????????????????????????????# !??# """ # | | ???????????????????????????????# < ""?# % # | | ???????????????????????????????# !??# !!! # | | ???????????????????????????????# "??# ! !! # | | ???????????????????????????????# ???# # | | ????????????????????????????????# #???# # | | ????????????????????????????????# ############## | | ????????????????????????????????# ? | | ?????????????????????############ ############## | | ?????????????????????# [! ;# ##???######## | | ?????????????????????# @! ##### ## | | ?????????????????????# g ## | | ?????????????????????# T ## | | ?????????????????????# % ## | | ?????????????????????# ; ##### ### | | ?????????????????????# ; %####### #### | | ?????????????????????# ;; # # # | | ?????????????????????####;;;;;;;; # """ / + | | ????????????????????????# # # """ # # "" | | ?????????????????????????######## u # "" # # "" | | ????????????????????????????????# # # # "" | | ???????????????????????????????## # " # # "" | | ???????????????????????????????# # "" # # "" | | ???????????????????????????????# " # # | | ???????????????????????????????## # #### | | ???????????????????????????????# # #### #??? | | ???????????????????????????????# ####### #### | | ???????????????????????????????## [ | | ????????????????????????????????# | | ????????????????????????????????# | | ????????????????????????????########+######+###### | | ????????????????????????????# # #?? | | ????????????????????????????# [ # T #?? | | ????????????????????????????# """ # #?? | | ????????????????????????????# """ # #?? | +----------------------------------------------------+ Best States ------------- Heat Dissipation 25 Energy Generation 10 Energy Capacity 125 Matter Stores 300 Matter Capacity 300 Sight Range 18 Robot Scan Range 14 Terrain Scan Density 10 ECM Strength 2 Utility Shielding 33 Evasion (%) 55 Item Schematics ----------------- None Robot Schematics ------------------ None Fabricated ------------ Nothing Repaired ---------- Grenade Launcher | 63% | -10/Materials Studied --------- None Alien Tech Used ----------------- None Achievements -------------- First Step to Greatness For Emergencies Only Organ Harvest Part-time Mechanic Spot Them First There's More Where That Came From Uninvited Guest Challenges ------------ None Game ------ Seed BombardmentActuatorRailgun Manual? 0 Play Time 00:27:47 Cumulative 0.4 hours Start 2026.02.02 @ 13:06:47 End 2026.02.02 @ 13:39:09 Sessions 1 Manual Loads 0 Difficulty Rogue Special Mode None Game No. 1 Rogue 1 Adventurer 0 Explorer 0 Win Type - Total 0 Types 0/0/0/0/0/0/0/0/0/0 Lore% 0 Gallery% 0 Achievement% 1 Wizard Run 0 Options --------- Layout 1 ASCII 0 Keyboard 0 Movement Mouse Keybinds 0 Fullscreen 1 Font 24/Smallcaps Map View 50x35 Zoom Use 0% Tactical HUD 0 Map Filters NONE Filters NONE Steam 1 RUN: b53b79f5-0ea0-471d-8aab-2a305b67acf5